fUSD/lending_fUSD_20260624
["ID","MTS","AMOUNT","RATE_DAILY","PERIOD"]
[426302330,1782259858000,-1149.59,0.00021227,2]
[426302336,1782259858000,-500.0,0.00021299,2]
[426302332,1782259858000,-195.20438385,0.00021253,3]
[426302338,1782259858000,-10309.08021146,0.000213,2]
[426302331,1782259858000,-178.27,0.00021227,2]
[426302341,1782259858000,-1610.8831814,0.000213,2]
[426302337,1782259858000,-500.0,0.00021299,2]
[426302339,1782259858000,-8764.85168775,0.000213,2]
[426302340,1782259858000,-9649.26720228,0.000213,2]
[426302318,1782259858000,-216.39158367,0.00021,3]
[426302373,1782259858000,-500.0,0.00021716,2]
[426302377,1782259858000,-500.0,0.00021758,2]
[426302415,1782259858000,-152.0,0.00021758,2]
[426302411,1782259858000,-500.0,0.00021758,2]
[426302404,1782259858000,-151.0,0.00021758,2]
[426302414,1782259858000,-500.0,0.00021758,2]
[426302408,1782259858000,-152.0,0.00021758,2]
[426302407,1782259858000,-500.0,0.00021758,2]
[426302405,1782259858000,-500.0,0.00021758,2]
[426302412,1782259858000,-500.0,0.00021758,2]
[426302413,1782259858000,-152.0,0.00021758,2]
[426302409,1782259858000,-500.0,0.00021758,2]
[426302410,1782259858000,-152.0,0.00021758,2]
[426302418,1782259858000,-152.0,0.00021758,2]
[426302406,1782259858000,-152.0,0.00021758,2]
[426302416,1782259858000,-500.0,0.00021758,2]
[426302420,1782259858000,-500.0,0.00021758,2]
[426302425,1782259858000,-151.0,0.00021813,2]
[426302422,1782259858000,-152.0,0.00021758,2]
[426302419,1782259858000,-152.0,0.00021758,2]
[426302424,1782259858000,-517.33432276,0.00021813,2]
[426302426,1782259858000,-151.0,0.00021813,2]
[426302421,1782259858000,-152.0,0.00021758,2]
[426302430,1782259858000,-1079.37,0.00021864,2]
[426302427,1782259858000,-631.0,0.00021818,3]
[426302428,1782259858000,-200.0,0.00021823,2]
[426302429,1782259858000,-1022.56,0.0002185,2]
[426302376,1782259858000,-500.0,0.00021727,2]
[426302423,1782259858000,-152.0,0.00021758,2]
[426302403,1782259858000,-152.0,0.00021758,2]
[426302417,1782259858000,-500.0,0.00021758,2]
[426302398,1782259858000,-152.0,0.00021758,2]
[426302397,1782259858000,-500.0,0.00021758,2]
[426302369,1782259858000,-500.0,0.00021716,2]
[426302366,1782259858000,-500.0,0.000217,3]
[426302368,1782259858000,-500.0,0.00021716,2]
[426302370,1782259858000,-500.0,0.00021716,2]
[426302379,1782259858000,-194.72792766,0.00021758,2]
[426302389,1782259858000,-8882.6885148,0.00021758,2]
[426302380,1782259858000,-517.33432276,0.00021758,2]
[426302374,1782259858000,-500.0,0.00021716,2]
[426302388,1782259858000,-157.39890755,0.00021758,2]
[426302381,1782259858000,-155.58333597,0.00021758,2]
[426302382,1782259858000,-197.08549854,0.00021758,2]
[426302385,1782259858000,-151.0,0.00021758,2]
[426302387,1782259858000,-578.20924308,0.00021758,2]
[426302384,1782259858000,-174.61919141,0.00021758,2]
[426302395,1782259858000,-670.58624095,0.00021758,2]
[426302383,1782259858000,-4888.88543764,0.00021758,2]
[426302399,1782259858000,-1021.58590871,0.00021758,2]
[426302400,1782259858000,-194.72792766,0.00021758,2]
[426302396,1782259858000,-194.72792766,0.00021758,2]
[426302392,1782259858000,-194.72792766,0.00021758,2]
[426302394,1782259858000,-500.0,0.00021758,2]
[426302390,1782259858000,-194.72792766,0.00021758,2]
[426302402,1782259858000,-151.0,0.00021758,2]
[426302401,1782259858000,-500.0,0.00021758,2]
[426302391,1782259858000,-500.0,0.00021758,2]
[426302386,1782259858000,-644.79446245,0.00021758,2]
[426302393,1782259858000,-152.0,0.00021758,2]
[426302473,1782259859000,-439.0,0.00022,2]
[426302471,1782259859000,-1378.0,0.00022,2]
[426302466,1782259859000,-162.4529408,0.00022,2]
[426302467,1782259859000,-1461.0,0.00022,2]
[426302468,1782259859000,-2752.0,0.00022,2]
[426302461,1782259859000,-33487.14117741,0.00022,4]
[426302477,1782259859000,-450.0,0.00022,2]
[426302465,1782259859000,-602.0,0.00022,2]
[426302476,1782259859000,-190.0,0.00022,2]
[426302464,1782259859000,-818.19788804,0.00022,7]
[426302469,1782259859000,-366.0,0.00022,2]
[426302470,1782259859000,-312.0,0.00022,2]
[426302487,1782259859000,-151.0,0.00022088,2]
[426302475,1782259859000,-842.0,0.00022,2]
[426302472,1782259859000,-414.0,0.00022,2]
[426302479,1782259859000,-4888.88543764,0.00022032,2]
[426302480,1782259859000,-517.33432276,0.00022033,2]
[426302478,1782259859000,-2658.2,0.00022,2]
[426302484,1782259859000,-936.0,0.0002207,2]
[426302488,1782259859000,-530.12817331,0.000221,7]
[426302489,1782259859000,-1056.65952867,0.000221,2]
[426302481,1782259859000,-151.0,0.00022033,2]
[426302482,1782259859000,-151.0,0.00022033,2]
[426302483,1782259859000,-893.34,0.0002207,2]
[426302486,1782259859000,-151.0,0.00022088,2]
[426302455,1782259859000,-151.0,0.00021978,2]
[426302474,1782259859000,-993.0,0.00022,2]
[426302456,1782259859000,-200.0,0.00021994,2]
[426302432,1782259859000,-559.22,0.00021864,2]
[426302458,1782259859000,-2236.95670847,0.00021994,2]
[426302436,1782259859000,-151.0,0.00021868,2]
[426302485,1782259859000,-517.33432276,0.00022088,2]
[426302439,1782259859000,-159.62329214,0.000219,2]
[426302433,1782259859000,-1115.1,0.00021864,2]
[426302431,1782259859000,-622.98,0.00021864,2]
[426302434,1782259859000,-517.33432276,0.00021868,2]
[426302438,1782259859000,-1056.65952867,0.000219,2]
[426302437,1782259859000,-10309.08021146,0.000219,2]
[426302435,1782259859000,-151.0,0.00021868,2]
[426302441,1782259859000,-1280.274,0.00021901,2]
[426302451,1782259859000,-785.0,0.00021936,2]
[426302442,1782259859000,-1362.907,0.00021901,2]
[426302444,1782259859000,-216.0,0.00021901,2]
[426302460,1782259859000,-200.0,0.00021999,10]
[426302443,1782259859000,-1231.662,0.00021901,2]
[426302445,1782259859000,-936.245,0.00021901,2]
[426302449,1782259859000,-151.0,0.00021923,2]
[426302447,1782259859000,-151.000011,0.00021918,2]
[426302446,1782259859000,-5000.0,0.00021918,2]
[426302448,1782259859000,-517.33432276,0.00021923,2]
[426302450,1782259859000,-151.0,0.00021923,2]
[426302454,1782259859000,-151.0,0.00021978,2]
[426302452,1782259859000,-2000.0,0.00021973,7]
[426302453,1782259859000,-517.33432276,0.00021978,2]
[426302457,1782259859000,-151.0,0.00021994,2]
[426302463,1782259859000,-437.0,0.00022,2]
[426302459,1782259859000,-5200.0,0.00021999,10]
[426302462,1782259859000,-2175.0,0.00022,2]
[426302440,1782259859000,-383.0,0.00021901,2]
[426302491,1782259859000,-151.0,0.00022143,2]
[426302505,1782259859000,-518.5,0.00022306,2]
[426302494,1782259859000,-250.0,0.00022181,2]
[426302536,1782259859000,-151.0,0.00022363,2]
[426302534,1782259859000,-517.33432276,0.00022363,2]
[426302533,1782259859000,-1138.6,0.00022353,2]
[426302535,1782259859000,-151.0,0.00022363,2]
[426302524,1782259859000,-151.0,0.00022341,2]
[426302526,1782259859000,-150.0,0.00022341,2]
[426302527,1782259859000,-299.0,0.00022341,2]
[426302531,1782259859000,-150.0,0.00022341,2]
[426302529,1782259859000,-249.242,0.00022341,2]
[426302493,1782259859000,-804.79099102,0.00022164,2]
[426302530,1782259859000,-168.413,0.00022341,2]
[426302528,1782259859000,-250.0,0.00022341,2]
[426302537,1782259859000,-200.0,0.00022377,2]
[426302540,1782259859000,-1691.3548266,0.00022407,2]
[426302541,1782259859000,-1691.3548266,0.00022407,2]
[426302539,1782259859000,-10309.08021146,0.000224,2]
[426302542,1782259859000,-1691.3548266,0.00022407,2]
[426302538,1782259859000,-500.0,0.00022379,2]
[426302549,1782259859000,-1155.53,0.00022466,2]
[426302548,1782259859000,-631.0,0.00022424,4]
[426302543,1782259859000,-1784.63,0.00022411,2]
[426302544,1782259859000,-151.0,0.00022411,2]
[426302546,1782259859000,-151.0,0.00022418,2]
[426302545,1782259859000,-517.33432287,0.00022418,2]
[426302547,1782259859000,-151.0,0.00022418,2]
[426302551,1782259859000,-1916.07,0.000225,7]
[426302550,1782259859000,-1056.65952867,0.000225,2]
[426302525,1782259859000,-150.0,0.00022341,2]
[426302521,1782259859000,-151.0,0.00022308,2]
[426302532,1782259859000,-3562.944,0.00022341,2]
[426302522,1782259859000,-151.0,0.00022308,2]
[426302492,1782259859000,-151.0,0.00022143,2]
[426302519,1782259859000,-151.0,0.00022306,2]
[426302490,1782259859000,-517.33432276,0.00022143,2]
[426302498,1782259859000,-10309.08021146,0.000222,2]
[426302497,1782259859000,-151.0,0.00022198,2]
[426302496,1782259859000,-151.0,0.00022198,2]
[426302500,1782259859000,-517.33432276,0.00022253,2]
[426302510,1782259859000,-4888.88543764,0.00022306,2]
[426302499,1782259859000,-4117.78799788,0.00022222,2]
[426302501,1782259859000,-151.0,0.00022253,2]
[426302502,1782259859000,-151.0,0.00022253,2]
[426302507,1782259859000,-201.93286098,0.00022306,2]
[426302506,1782259859000,-871.06772465,0.00022306,2]
[426302495,1782259859000,-517.33432276,0.00022198,2]
[426302504,1782259859000,-1056.65952867,0.000223,2]
[426302503,1782259859000,-785.0,0.00022268,2]
[426302523,1782259859000,-150.0,0.00022333,2]
[426302520,1782259859000,-517.33432276,0.00022308,2]
[426302513,1782259859000,-157.39890755,0.00022306,2]
[426302516,1782259859000,-201.93286098,0.00022306,2]
[426302515,1782259859000,-201.93286098,0.00022306,2]
[426302518,1782259859000,-201.93286098,0.00022306,2]
[426302514,1782259859000,-9211.34798984,0.00022306,2]
[426302517,1782259859000,-1021.58590871,0.00022306,2]
[426302511,1782259859000,-181.08010149,0.00022306,2]
[426302509,1782259859000,-197.08549854,0.00022306,2]
[426302512,1782259859000,-668.65185756,0.00022306,2]
[426302508,1782259859000,-155.58333597,0.00022306,2]
[426302584,1782259860000,-209.40437684,0.00022854,2]
[426302581,1782259860000,-209.40437684,0.00022854,2]
[426302583,1782259860000,-1021.58590871,0.00022854,2]
[426302580,1782259860000,-9552.16786547,0.00022854,2]
[426302582,1782259860000,-209.40437684,0.00022854,2]
[426302577,1782259860000,-187.78006524,0.00022854,2]
[426302578,1782259860000,-515.47408635,0.00022854,2]
[426302579,1782259860000,-157.39890764,0.00022854,2]
[426302599,1782259860000,-1461.0,0.00023,2]
[426302575,1782259860000,-197.08549854,0.00022854,2]
[426302596,1782259860000,-2175.0,0.00023,2]
[426302600,1782259860000,-2752.0,0.00023,2]
[426302589,1782259860000,-500.0,0.00022882,2]
[426302590,1782259860000,-500.0,0.00022882,2]
[426302588,1782259860000,-893.34,0.00022882,2]
[426302595,1782259860000,-1056.65952867,0.00023,2]
[426302597,1782259860000,-437.0,0.00023,2]
[426302593,1782259860000,-785.0,0.00022933,2]
[426302598,1782259860000,-602.0,0.00023,2]
[426302594,1782259860000,-2000.0,0.00022976,7]
[426302602,1782259860000,-312.0,0.00023,2]
[426302587,1782259860000,-893.34,0.00022882,2]
[426302591,1782259860000,-936.0,0.00022882,2]
[426302576,1782259860000,-4888.88543764,0.00022854,2]
[426302585,1782259860000,-151.0,0.00022854,2]
[426302574,1782259860000,-155.58333598,0.00022854,2]
[426302612,1782259860000,-190.0,0.00023,2]
[426302561,1782259860000,-4888.88543764,0.0002258,2]
[426302560,1782259860000,-200.0,0.00022578,2]
[426302558,1782259860000,-200.0,0.00022542,2]
[426302553,1782259860000,-603.71,0.00022501,7]
[426302556,1782259860000,-182.26888893,0.00022538,14]
[426302554,1782259860000,-541.93,0.00022501,7]
[426302559,1782259860000,-2319.72410669,0.00022542,2]
[426302555,1782259860000,-1080.61,0.00022501,7]
[426302557,1782259860000,-151.0,0.00022542,2]
[426302552,1782259860000,-1045.99,0.00022501,7]
[426302563,1782259860000,-785.0,0.000226,2]
[426302572,1782259860000,-871.06772465,0.00022854,2]
[426302568,1782259860000,-500.0,0.00022799,2]
[426302573,1782259860000,-209.40437684,0.00022854,2]
[426302565,1782259860000,-1056.65952867,0.000227,2]
[426302566,1782259860000,-721.54,0.00022733,2]
[426302564,1782259860000,-847.40734944,0.00022661,2]
[426302562,1782259860000,-10309.08021146,0.000226,2]
[426302569,1782259860000,-500.0,0.00022799,2]
[426302571,1782259860000,-537.6845,0.00022854,2]
[426302567,1782259860000,-500.0,0.00022799,2]
[426302570,1782259860000,-10309.08021146,0.000228,2]
[426302586,1782259860000,-500.0,0.00022882,2]
[426302605,1782259860000,-439.0,0.00023,2]
[426302592,1782259860000,-936.0,0.00022882,2]
[426302613,1782259860000,-631.0,0.0002303,4]
[426302633,1782259860000,-217.15233878,0.00023402,2]
[426302630,1782259860000,-206.0,0.00023354,2]
[426302632,1782259860000,-871.06772465,0.00023402,2]
[426302631,1782259860000,-557.5788265,0.00023402,2]
[426302629,1782259860000,-1046.13,0.0002335,7]
[426302634,1782259860000,-197.08549854,0.00023402,2]
[426302635,1782259860000,-4888.88543764,0.00023402,2]
[426302636,1782259860000,-194.72792766,0.00023402,2]
[426302641,1782259860000,-217.15233878,0.00023402,2]
[426302640,1782259860000,-1021.58590871,0.00023402,2]
[426302642,1782259860000,-151.0,0.00023402,2]
[426302644,1782259860000,-893.34,0.00023438,2]
[426302645,1782259860000,-500.0,0.00023438,2]
[426302646,1782259860000,-500.0,0.00023438,2]
[426302648,1782259860000,-10309.08021146,0.000235,2]
[426302649,1782259860000,-500.0,0.00023589,2]
[426302647,1782259860000,-936.0,0.00023438,2]
[426302650,1782259860000,-2000.0,0.00023589,2]
[426302651,1782259860000,-785.0,0.00023598,2]
[426302652,1782259860000,-631.0,0.00023636,5]
[426302654,1782259860000,-200.0,0.00023638,2]
[426302653,1782259860000,-151.0,0.00023638,2]
[426302601,1782259860000,-366.0,0.00023,2]
[426302638,1782259860000,-217.15233878,0.00023402,2]
[426302639,1782259860000,-217.15233878,0.00023402,2]
[426302643,1782259860000,-575.503723,0.00023438,2]
[426302627,1782259860000,-200.0,0.00023334,2]
[426302637,1782259860000,-9905.59807649,0.00023402,2]
[426302604,1782259860000,-414.0,0.00023,2]
[426302606,1782259860000,-2074.92003285,0.00023,2]
[426302607,1782259860000,-7137.64096718,0.00023,2]
[426302611,1782259860000,-842.0,0.00023,2]
[426302656,1782259860000,-847.40734944,0.00023661,2]
[426302603,1782259860000,-1378.0,0.00023,2]
[426302610,1782259860000,-993.0,0.00023,2]
[426302608,1782259860000,-1243.74878545,0.00023,2]
[426302614,1782259860000,-500.0,0.00023051,2]
[426302617,1782259860000,-151.0,0.0002309,2]
[426302620,1782259860000,-10309.08021146,0.000231,2]
[426302609,1782259860000,-1297.00988926,0.00023,2]
[426302621,1782259860000,-201.93286098,0.00023127,2]
[426302628,1782259860000,-1012.61,0.0002335,7]
[426302622,1782259860000,-4888.88543764,0.00023128,2]
[426302623,1782259860000,-12208.21,0.00023231,7]
[426302624,1782259860000,-785.0,0.00023265,2]
[426302615,1782259860000,-151.44105201,0.00023051,2]
[426302619,1782259860000,-2405.55389863,0.0002309,2]
[426302655,1782259860000,-2494.55939288,0.00023638,2]
[426302616,1782259860000,-209.98865178,0.00023051,2]
[426302625,1782259860000,-155.100243,0.00023297,7]
[426302626,1782259860000,-10309.08021146,0.000233,2]
[426302618,1782259860000,-200.0,0.0002309,2]
[426302699,1782259861000,-50000.0,0.00024,7]
[426302703,1782259861000,-3107.11,0.00024,7]
[426302695,1782259861000,-50000.0,0.00024,7]
[426302697,1782259861000,-50000.0,0.00024,7]
[426302692,1782259861000,-936.0,0.00023999,2]
[426302686,1782259861000,-2000.0,0.0002398,7]
[426302693,1782259861000,-50000.0,0.00024,7]
[426302688,1782259861000,-152.0,0.00023983,5]
[426302689,1782259861000,-893.34,0.00023999,2]
[426302687,1782259861000,-152.0,0.00023983,3]
[426302700,1782259861000,-50000.0,0.00024,5]
[426302701,1782259861000,-50000.0,0.00024,7]
[426302702,1782259861000,-50000.0,0.00024,5]
[426302712,1782259861000,-414.0,0.00024,2]
[426302698,1782259861000,-50000.0,0.00024,5]
[426302696,1782259861000,-50000.0,0.00024,5]
[426302716,1782259861000,-190.0,0.00024,2]
[426302705,1782259861000,-437.0,0.00024,2]
[426302710,1782259861000,-312.0,0.00024,2]
[426302704,1782259861000,-76651.80117618,0.00024,2]
[426302715,1782259861000,-842.0,0.00024,2]
[426302709,1782259861000,-366.0,0.00024,2]
[426302706,1782259861000,-602.0,0.00024,2]
[426302708,1782259861000,-2752.0,0.00024,2]
[426302711,1782259861000,-1378.0,0.00024,2]
[426302713,1782259861000,-439.0,0.00024,2]
[426302690,1782259861000,-893.34,0.00023999,2]
[426302694,1782259861000,-50000.0,0.00024,5]
[426302684,1782259861000,-225.18697532,0.0002395,2]
[426302660,1782259861000,-1916.07,0.000237,7]
[426302682,1782259861000,-225.18697532,0.0002395,2]
[426302657,1782259861000,-151.0,0.00023668,2]
[426302666,1782259861000,-893.34,0.00023825,2]
[426302659,1782259861000,-4888.88543764,0.00023676,2]
[426302714,1782259861000,-993.0,0.00024,2]
[426302664,1782259861000,-893.34,0.00023825,2]
[426302658,1782259861000,-151.0,0.00023668,2]
[426302661,1782259861000,-275.21382065,0.00023729,2]
[426302663,1782259861000,-500.0,0.00023742,2]
[426302665,1782259861000,-893.34,0.00023825,2]
[426302662,1782259861000,-500.0,0.00023729,2]
[426302668,1782259861000,-244.00594948,0.00023825,2]
[426302679,1782259861000,-201.93286098,0.0002395,2]
[426302678,1782259861000,-4888.88543764,0.0002395,2]
[426302669,1782259861000,-936.0,0.00023825,2]
[426302667,1782259861000,-500.0,0.00023825,2]
[426302671,1782259861000,-936.0,0.00023825,2]
[426302670,1782259861000,-936.0,0.00023825,2]
[426302676,1782259861000,-225.18697532,0.0002395,2]
[426302672,1782259861000,-200.0,0.00023923,2]
[426302677,1782259861000,-197.08549854,0.0002395,2]
[426302673,1782259861000,-785.0,0.0002393,2]
[426302675,1782259861000,-871.06772465,0.0002395,2]
[426302674,1782259861000,-578.20924308,0.0002395,2]
[426302681,1782259861000,-225.18697532,0.0002395,2]
[426302680,1782259861000,-10272.10520532,0.0002395,2]
[426302691,1782259861000,-936.0,0.00023999,2]
[426302685,1782259861000,-151.0,0.0002395,2]
[426302683,1782259861000,-1021.58590871,0.0002395,2]
[426302717,1782259861000,-500.0,0.00024,2]
[426302707,1782259861000,-1461.0,0.00024,2]
[426302728,1782259861000,-200.0,0.00024089,2]
[426302748,1782259861000,-499.83315559,0.00024454,2]
[426302751,1782259861000,-695.39793187,0.00024497,2]
[426302752,1782259861000,-599.60298507,0.00024498,2]
[426302755,1782259861000,-197.08549854,0.00024498,2]
[426302765,1782259861000,-2658.2,0.00024628,7]
[426302756,1782259861000,-4888.88543764,0.00024498,2]
[426302762,1782259861000,-233.5188934,0.00024498,2]
[426302754,1782259861000,-233.5188934,0.00024498,2]
[426302758,1782259861000,-10652.17309792,0.00024498,2]
[426302759,1782259861000,-233.5188934,0.00024498,2]
[426302760,1782259861000,-233.5188934,0.00024498,2]
[426302764,1782259861000,-171.22,0.00024566,2]
[426302763,1782259861000,-151.0,0.00024498,2]
[426302747,1782259861000,-285.0,0.00024421,2]
[426302761,1782259861000,-1021.58590871,0.00024498,2]
[426302769,1782259861000,-151.0,0.00024658,2]
[426302774,1782259861000,-151.0,0.00024658,2]
[426302771,1782259861000,-151.0,0.00024658,2]
[426302776,1782259861000,-151.0,0.00024658,2]
[426302772,1782259861000,-151.0,0.00024658,2]
[426302768,1782259861000,-151.0,0.00024658,2]
[426302766,1782259861000,-1179.146964,0.00024634,7]
[426302775,1782259861000,-151.0,0.00024658,2]
[426302770,1782259861000,-151.0,0.00024658,2]
[426302777,1782259861000,-151.0,0.00024658,2]
[426302767,1782259861000,-151.0,0.00024658,2]
[426302778,1782259861000,-198.938165,0.00024658,2]
[426302718,1782259861000,-151.0,0.00024,2]
[426302773,1782259861000,-151.0,0.00024658,2]
[426302750,1782259861000,-599.60298507,0.00024497,2]
[426302757,1782259861000,-209.40437684,0.00024498,2]
[426302746,1782259861000,-598.0,0.00024403,10]
[426302749,1782259861000,-209.40437684,0.00024496,2]
[426302720,1782259861000,-248.143444,0.00024,2]
[426302719,1782259861000,-645.664511,0.00024,2]
[426302723,1782259861000,-645.664511,0.00024,2]
[426302722,1782259861000,-645.664511,0.00024,2]
[426302724,1782259861000,-269.249007,0.00024,2]
[426302725,1782259861000,-269.249007,0.00024,2]
[426302726,1782259861000,-269.249007,0.00024,2]
[426302727,1782259861000,-269.249007,0.00024,2]
[426302741,1782259861000,-4888.88543764,0.00024224,2]
[426302730,1782259861000,-1993.101868,0.00024174,2]
[426302729,1782259861000,-1993.101868,0.00024174,2]
[426302740,1782259861000,-3775.01142214,0.0002421,2]
[426302732,1782259861000,-1993.101868,0.00024174,2]
[426302721,1782259861000,-645.664511,0.00024,2]
[426302753,1782259861000,-871.06772465,0.00024498,2]
[426302731,1782259861000,-1993.101868,0.00024174,2]
[426302744,1782259861000,-200.0,0.00024297,2]
[426302745,1782259861000,-1138.6,0.00024324,2]
[426302743,1782259861000,-10837.33036436,0.0002429,7]
[426302738,1782259861000,-200.0,0.00024186,2]
[426302742,1782259861000,-631.0,0.00024242,6]
[426302734,1782259861000,-59898.27,0.00024174,2]
[426302733,1782259861000,-3541.45,0.00024174,2]
[426302735,1782259861000,-590.77,0.00024174,2]
[426302739,1782259861000,-2586.85809042,0.00024186,2]
[426302736,1782259861000,-923.74,0.00024174,2]
[426302737,1782259861000,-151.0,0.00024186,2]
[426302818,1782259862000,-150.0,0.00024658,2]
[426302824,1782259862000,-150.0,0.00024658,2]
[426302819,1782259862000,-150.0,0.00024658,2]
[426302828,1782259862000,-150.0,0.00024658,2]
[426302817,1782259862000,-168.70889252,0.00024658,2]
[426302811,1782259862000,-151.0,0.00024658,2]
[426302812,1782259862000,-500.0,0.00024658,2]
[426302808,1782259862000,-151.0,0.00024658,2]
[426302807,1782259862000,-151.0,0.00024658,2]
[426302814,1782259862000,-500.0,0.00024658,2]
[426302829,1782259862000,-150.0,0.00024658,2]
[426302809,1782259862000,-275.934024,0.00024658,2]
[426302813,1782259862000,-500.0,0.00024658,2]
[426302820,1782259862000,-150.0,0.00024658,2]
[426302831,1782259862000,-150.0,0.00024658,2]
[426302821,1782259862000,-150.0,0.00024658,2]
[426302823,1782259862000,-150.0,0.00024658,2]
[426302822,1782259862000,-150.0,0.00024658,2]
[426302827,1782259862000,-150.0,0.00024658,2]
[426302825,1782259862000,-150.0,0.00024658,2]
[426302843,1782259862000,-150.0,0.00024658,2]
[426302841,1782259862000,-2000.0,0.00024658,2]
[426302830,1782259862000,-150.0,0.00024658,2]
[426302834,1782259862000,-150.0,0.00024658,2]
[426302837,1782259862000,-150.0,0.00024658,2]
[426302833,1782259862000,-150.0,0.00024658,2]
[426302842,1782259862000,-150.0,0.00024658,2]
[426302838,1782259862000,-150.0,0.00024658,2]
[426302826,1782259862000,-150.0,0.00024658,2]
[426302806,1782259862000,-151.0,0.00024658,2]
[426302786,1782259862000,-187.792673,0.00024658,2]
[426302804,1782259862000,-151.0,0.00024658,2]
[426302835,1782259862000,-150.0,0.00024658,2]
[426302787,1782259862000,-187.792673,0.00024658,2]
[426302782,1782259862000,-187.792673,0.00024658,2]
[426302780,1782259862000,-187.792673,0.00024658,2]
[426302779,1782259862000,-187.792673,0.00024658,2]
[426302789,1782259862000,-187.792673,0.00024658,2]
[426302790,1782259862000,-187.792673,0.00024658,2]
[426302781,1782259862000,-187.792673,0.00024658,2]
[426302784,1782259862000,-187.792673,0.00024658,2]
[426302785,1782259862000,-187.792673,0.00024658,2]
[426302783,1782259862000,-187.792673,0.00024658,2]
[426302788,1782259862000,-187.792673,0.00024658,2]
[426302791,1782259862000,-1475.08,0.00024658,2]
[426302810,1782259862000,-1000.0,0.00024658,2]
[426302793,1782259862000,-654.820538,0.00024658,2]
[426302803,1782259862000,-654.820538,0.00024658,2]
[426302798,1782259862000,-654.820538,0.00024658,2]
[426302795,1782259862000,-654.820538,0.00024658,2]
[426302800,1782259862000,-654.820538,0.00024658,2]
[426302802,1782259862000,-654.820538,0.00024658,2]
[426302792,1782259862000,-654.820538,0.00024658,2]
[426302797,1782259862000,-654.820538,0.00024658,2]
[426302799,1782259862000,-654.820538,0.00024658,2]
[426302796,1782259862000,-654.820538,0.00024658,2]
[426302801,1782259862000,-654.820538,0.00024658,2]
[426302816,1782259862000,-500.0,0.00024658,2]
[426302805,1782259862000,-151.0,0.00024658,2]
[426302815,1782259862000,-500.0,0.00024658,2]
[426302794,1782259862000,-654.820538,0.00024658,2]
[426302839,1782259862000,-150.0,0.00024658,2]
[426302898,1782259862000,-630.6877681,0.00025,5]
[426302832,1782259862000,-150.0,0.00024658,2]
[426302877,1782259862000,-216.0,0.00024901,2]
[426302874,1782259862000,-1277.0,0.00024901,2]
[426302876,1782259862000,-1229.0,0.00024901,2]
[426302880,1782259862000,-514.0,0.00024975,2]
[426302878,1782259862000,-935.0,0.00024901,2]
[426302879,1782259862000,-514.66476211,0.0002497,2]
[426302882,1782259862000,-893.34,0.00024999,2]
[426302881,1782259862000,-2000.0,0.00024983,7]
[426302884,1782259862000,-50000.0,0.00025,5]
[426302883,1782259862000,-936.0,0.00024999,2]
[426302889,1782259862000,-622.65147549,0.00025,2]
[426302885,1782259862000,-1000.0,0.00025,2]
[426302890,1782259862000,-3102.46986971,0.00025,2]
[426302872,1782259862000,-3200.0,0.000249,9]
[426302891,1782259862000,-440.24752524,0.00025,2]
[426302886,1782259862000,-211.52221516,0.00025,2]
[426302892,1782259862000,-7265.49077508,0.00025,2]
[426302903,1782259862000,-604.97807811,0.00025,2]